fUSD/lending_fUSD_20240215
["ID","MTS","AMOUNT","RATE_DAILY","PERIOD"]
[314124570,1708008644665,-532.32,0.000388,3]
[314124571,1708008644674,-532.32,0.000388,3]
[314124572,1708008644683,-532.32,0.000388,3]
[314124573,1708008644694,-532.32,0.000388,3]
[314124574,1708008644703,-150.0,0.00038806,2]
[314124575,1708008644713,-12221.3851,0.00038808,2]
[314124576,1708008644722,-3330.70438481,0.00038809,2]
[314124577,1708008644731,-178.2,0.00038822,7]
[314124578,1708008644740,-178.2,0.00038822,7]
[314124579,1708008644750,-373.273337,0.00038825,2]
[314124580,1708008644758,-373.273337,0.00038825,2]
[314124581,1708008644768,-151.0,0.00038825,7]
[314124582,1708008644777,-151.0,0.00038825,7]
[314124583,1708008644787,-230.70930458,0.0003883,2]
[314124584,1708008644796,-20184.31250456,0.00038878,2]
[314124585,1708008644805,-500.0,0.0003888,7]
[314124586,1708008644814,-500.0,0.0003888,7]
[314124587,1708008644823,-500.0,0.0003888,7]
[314124588,1708008644832,-500.0,0.0003888,7]
[314124589,1708008644841,-500.0,0.0003888,7]
[314124590,1708008644851,-500.0,0.0003888,7]
[314124591,1708008644860,-500.0,0.0003888,7]
[314124592,1708008644869,-500.0,0.0003888,7]
[314124593,1708008644878,-500.0,0.0003888,7]
[314124594,1708008644888,-500.0,0.0003888,7]
[314124595,1708008644897,-500.0,0.0003888,7]
[314124596,1708008644906,-500.0,0.0003888,7]
[314124597,1708008644915,-500.0,0.0003888,7]
[314124598,1708008644924,-500.0,0.0003888,7]
[314124599,1708008644934,-500.0,0.0003888,7]
[314124600,1708008644943,-500.0,0.0003888,7]
[314124601,1708008644952,-500.0,0.0003888,7]
[314124602,1708008644961,-500.0,0.0003888,7]
[314124603,1708008644970,-500.0,0.0003888,7]
[314124604,1708008644979,-500.0,0.0003888,7]
[314124605,1708008644988,-500.0,0.0003888,7]
[314124606,1708008644997,-500.0,0.0003888,7]
[314124607,1708008645007,-257.44,0.0003888,7]
[314124608,1708008645016,-200.0,0.00038896,7]
[314124609,1708008645025,-151.0,0.000389,7]
[314124610,1708008645034,-151.0,0.000389,7]
[314124611,1708008645044,-189.919965,0.000389,7]
[314124612,1708008645053,-153.0,0.000389,7]
[314124613,1708008645062,-5000.0,0.00038904,2]
[314124614,1708008645072,-1000.0,0.00038904,14]
[314124615,1708008645081,-154.555508,0.00038904,14]
[314124616,1708008645090,-282.43,0.00038904,2]
[314124617,1708008645100,-151.0,0.00038908,7]
[314124618,1708008645109,-170.720541,0.00038908,7]
[314124619,1708008645118,-151.0,0.00038908,7]
[314124620,1708008645128,-151.0,0.00038908,7]
[314124621,1708008645137,-178.2,0.00038908,7]
[314124622,1708008645145,-178.2,0.00038908,7]
[314124623,1708008645155,-152.34,0.00038912,2]
[314124624,1708008645164,-166471.1641825,0.00038929,2]
[314124625,1708008645173,-16189.31061349,0.00038929,2]
[314124626,1708008645184,-18739.81671836,0.00038929,2]
[314124627,1708008645195,-12902.84765519,0.00038929,2]
[314124628,1708008645204,-1210.0,0.00038929,2]
[314124629,1708008645212,-2122.85837043,0.00038929,2]
[314124630,1708008645222,-334.90027175,0.00038929,2]
[314124631,1708008645231,-2892.9953561,0.00038929,2]
[314124632,1708008645240,-161.87815211,0.00038929,120]
[314124633,1708008645248,-288.82931725,0.00038929,120]
[314124634,1708008645257,-5805.85101675,0.00038929,2]
[314124635,1708008645267,-1462.94123009,0.00038929,2]
[314124636,1708008645276,-7093.57386482,0.00038929,2]
[314124637,1708008645286,-2630.36481404,0.00038929,2]
[314124638,1708008645295,-2361.54773627,0.00038929,2]
[314124639,1708008645304,-2570.52193841,0.00038929,2]
[314124640,1708008645313,-132204.64691036,0.00038929,2]
[314124641,1708008645322,-3126.15322596,0.00038929,2]
[314124642,1708008645332,-167.66096928,0.00038929,2]
[314124643,1708008645341,-10026.20296418,0.00038929,2]
[314124644,1708008645350,-3042.34635825,0.00038929,2]
[314124645,1708008645360,-3668.02171984,0.00038929,2]
[314124646,1708008645369,-206.47188145,0.00038929,2]
[314124647,1708008645378,-4821.56306069,0.00038929,2]
[314124648,1708008645387,-173.91639874,0.00038929,2]
[314124649,1708008645397,-71922.41356881,0.00038929,2]
[314124650,1708008645406,-161.6483363,0.00038929,2]
[314124651,1708008645416,-1912.95752079,0.00038929,120]
[314124652,1708008645425,-3032.40895269,0.00038929,2]
[314124653,1708008645434,-8886.7145232,0.00038929,2]
[314124654,1708008645444,-1261.98064401,0.00038929,2]
[314124655,1708008645454,-4757.81609302,0.00038929,2]
[314124656,1708008645463,-41074.0093764,0.00038929,2]
[314124657,1708008645473,-1377.19229444,0.00038929,30]
[314124658,1708008645482,-984.54123815,0.00038929,2]
[314124659,1708008645491,-21832.86594093,0.00038929,2]
[314124660,1708008645501,-162.95137962,0.00038929,2]
[314124661,1708008645510,-157.09620391,0.00038929,2]
[314124662,1708008645521,-162.73999049,0.00038929,15]
[314124663,1708008645530,-19479.5284887,0.00038929,2]
[314124664,1708008645540,-21399.53195405,0.00038929,7]
[314124665,1708008645550,-532.31712027,0.00038929,2]
[314124666,1708008645559,-316.52391903,0.00038929,30]
[314124667,1708008645568,-636.73963912,0.00038929,4]
[314124668,1708008645578,-156.97067029,0.00038929,2]
[314124670,1708008645587,-2090.7291501,0.00038929,10]
[314124672,1708008645597,-869.33616524,0.00038929,120]
[314124674,1708008645607,-584.84890433,0.00038929,120]
[314124675,1708008645616,-54366.61600931,0.00038929,2]
[314124677,1708008645626,-155.43263762,0.00038929,2]
[314124678,1708008645636,-11204.7133579,0.00038929,120]
[314124679,1708008645646,-5915.03359233,0.00038929,2]
[314124680,1708008645656,-11066.12535873,0.00038929,2]
[314124682,1708008645665,-1044.78293957,0.00038929,2]
[314124684,1708008645674,-413.6482853,0.00038929,120]
[314124686,1708008645684,-13188.50299122,0.00038929,2]
[314124688,1708008645694,-500.0,0.00038929,120]
[314124690,1708008645704,-150.0,0.00038929,117]
[314124692,1708008645713,-645.13182286,0.00038929,90]
[314124694,1708008645722,-664.91604812,0.00038929,2]
[314124696,1708008645732,-410.46379867,0.00038929,120]
[314124698,1708008645741,-1232.0,0.00038929,4]
[314124700,1708008645751,-922.80527199,0.00038929,120]
[314124702,1708008645760,-1418.34495093,0.00038929,2]
[314124704,1708008645770,-27979.1521,0.00038929,7]
[314124706,1708008645780,-684.33862,0.00038929,7]
[314124707,1708008645789,-1000.0,0.00038929,60]
[314124708,1708008645798,-1000.0,0.00038929,60]
[314124709,1708008645808,-200.0,0.00038929,30]
[314124710,1708008645817,-1751.579423,0.00038929,30]
[314124711,1708008645827,-151.0,0.00038929,7]
[314124712,1708008645836,-151.0,0.00038929,7]
[314124713,1708008645846,-151.0,0.00038929,7]
[314124714,1708008645855,-151.0,0.00038929,7]
[314124715,1708008645864,-197.200938,0.00038929,7]
[314124716,1708008645874,-151.0,0.00038929,7]
[314124717,1708008645884,-151.0,0.00038929,7]
[314124718,1708008645894,-151.0,0.00038929,7]
[314124719,1708008645903,-151.0,0.00038929,7]
[314124720,1708008645912,-151.0,0.00038929,7]
[314124721,1708008645922,-151.0,0.00038929,7]
[314124722,1708008645931,-373.273337,0.0003893,2]
[314124723,1708008645942,-373.273337,0.0003893,2]
[314124724,1708008646035,-151.0,0.0003893,7]
[314124725,1708008646045,-151.0,0.0003893,7]
[314124726,1708008646054,-151.0,0.0003893,7]
[314124727,1708008646063,-221.075265,0.0003893,7]
[314124728,1708008646073,-151.0,0.0003893,7]
[314124729,1708008646083,-185.847422,0.0003893,7]
[314124730,1708008646093,-161.848028,0.0003893,7]
[314124731,1708008646102,-161.848028,0.0003893,7]
[314124732,1708008646111,-151.0,0.0003893,7]
[314124733,1708008646121,-151.0,0.0003893,7]
[314124734,1708008646130,-151.0,0.0003893,7]
[314124735,1708008646139,-151.0,0.0003893,7]
[314124736,1708008646149,-151.0,0.0003893,7]
[314124737,1708008646158,-151.0,0.0003893,7]
[314124738,1708008646167,-205.993678,0.0003893,7]
[314124739,1708008646176,-193.30357,0.0003893,7]
[314124740,1708008646188,-1011.703502,0.0003893,7]
[314124741,1708008646198,-1011.703502,0.0003893,7]
[314124742,1708008646208,-1011.703502,0.0003893,7]
[314124743,1708008646218,-1011.703502,0.0003893,7]
[314124744,1708008646227,-227.5546,0.0003893,7]
[314124745,1708008646236,-227.5546,0.0003893,7]
[314124746,1708008646247,-227.5546,0.0003893,7]
[314124747,1708008646255,-227.5546,0.0003893,7]
[314124748,1708008646265,-151.0,0.0003893,7]
[314124749,1708008646275,-151.0,0.0003893,7]
[314124750,1708008646284,-151.0,0.0003893,7]
[314124751,1708008646294,-151.0,0.0003893,7]
[314124752,1708008646303,-151.0,0.0003893,7]
[314124753,1708008646312,-151.0,0.0003893,7]
[314124754,1708008646322,-151.0,0.0003893,7]
[314124755,1708008646331,-151.0,0.0003893,7]
[314124756,1708008646340,-151.0,0.0003893,7]
[314124757,1708008646349,-243.391961,0.0003893,7]
[314124758,1708008646358,-243.391961,0.0003893,7]
[314124759,1708008646368,-243.391961,0.0003893,7]
[314124760,1708008646378,-243.391961,0.0003893,7]
[314124761,1708008646387,-480.0,0.00038949,2]
[314124762,1708008646396,-853.61271253,0.00038959,9]
[314124763,1708008646405,-178.95106183,0.00038986,7]
[314124764,1708008646415,-200.0,0.00038987,2]
[314124765,1708008646424,-100000.0,0.00039,9]
[314124766,1708008646434,-42000.0,0.00039,3]
[314124767,1708008646444,-370833.0,0.00039,2]
[314124768,1708008646453,-300.0,0.00039,16]
[314124770,1708008646463,-1390.6,0.00039,7]
[314124772,1708008646472,-4000.0,0.00039,8]
[314124773,1708008646482,-12750.00842861,0.00039,2]
[314124774,1708008646491,-151.0,0.00039,7]
[314124775,1708008646501,-151.0,0.00039,7]
[314124776,1708008646511,-151.0,0.00039,7]
[314124777,1708008646521,-178.2,0.00039,7]
[314124778,1708008646531,-178.2,0.00039,7]
[314124779,1708008646540,-373.273337,0.00039,2]
[314124780,1708008646550,-373.273337,0.00039,2]
[314124781,1708008646559,-151.0,0.00039,7]
[314124782,1708008646569,-208.92,0.00039,5]
[314124783,1708008646579,-151.0,0.00039,7]
[314124784,1708008646588,-161.848028,0.00039,7]
[314124785,1708008646597,-161.848028,0.00039,7]
[314124786,1708008646607,-151.0,0.00039,7]
[314124787,1708008646616,-151.0,0.00039,7]
[314124788,1708008646626,-268.162787,0.00039,7]
[314124789,1708008646635,-1011.703502,0.00039,7]
[314124790,1708008646645,-1011.703502,0.00039,7]
[314124791,1708008646655,-227.5546,0.00039,7]
[314124792,1708008646664,-227.5546,0.00039,7]
[314124793,1708008646674,-151.0,0.00039,7]
[314124794,1708008646683,-151.0,0.00039,7]
[314124795,1708008646695,-151.0,0.00039,7]
[314124796,1708008646704,-151.0,0.00039,7]
[314124797,1708008646713,-243.391961,0.00039,7]
[314124798,1708008646723,-243.391961,0.00039,7]
[314124799,1708008646732,-151.0,0.00039,7]
[314124801,1708008646742,-151.0,0.00039,7]
[314124802,1708008646751,-151.0,0.00039,7]
[314124803,1708008646760,-700.0,0.00039,3]
[314124804,1708008646770,-151.0,0.00039,7]
[314124805,1708008646779,-151.0,0.00039,7]
[314124806,1708008646789,-1000.0,0.00039002,10]
[314124807,1708008646798,-150.0,0.00039027,2]
[314124808,1708008646807,-2213.86088139,0.00039044,2]
[314124809,1708008646816,-1561.54772798,0.00039044,2]
[314124810,1708008646826,-10776.47,0.00039044,7]
[314124811,1708008646836,-10776.47,0.00039044,7]
[314124812,1708008646845,-154.0,0.00039044,7]
[314124813,1708008646855,-183.39006805,0.00039066,2]
[314124814,1708008646864,-714.45565331,0.00039066,2]
[314124815,1708008646874,-5908.12746108,0.00039077,12]
[314124816,1708008646884,-5000.0,0.00039178,2]
[314124817,1708008646893,-1000.0,0.00039178,14]
[314124818,1708008646903,-546.43,0.00039181,2]
[314124819,1708008646913,-1130.26321765,0.00039257,10]
[314124820,1708008646923,-267.15,0.0003926,2]
[314124821,1708008646933,-180.0,0.00039262,2]
[314124822,1708008646943,-150.0,0.00039279,2]
[314124823,1708008646952,-300.0,0.000393,13]
[314124824,1708008646962,-205.0,0.000393,11]
[314124825,1708008646971,-153.46372747,0.00039315,4]
[314124826,1708008646981,-10776.47,0.00039317,7]
[314124827,1708008646990,-10776.47,0.00039317,7]
[314124828,1708008647000,-151.0,0.00039317,7]
[314124829,1708008647008,-151.0,0.00039317,7]
[314124830,1708008647017,-3330.70438481,0.00039362,2]
[314124831,1708008647026,-151.0,0.00039396,7]
[314124832,1708008647036,-161.848028,0.00039396,7]
[314124833,1708008647045,-161.848028,0.00039396,7]
[314124834,1708008647054,-151.0,0.00039396,7]
[314124835,1708008647063,-151.0,0.00039396,7]
[314124837,1708008647073,-150.0,0.00039396,2]
[314124839,1708008647082,-5908.12746108,0.00039396,13]
[314124841,1708008647091,-1390.6,0.000394,7]
[314124843,1708008647100,-20184.31250456,0.00039422,2]
[314124844,1708008647109,-853.61271253,0.00039429,9]
[314124846,1708008647118,-200.0,0.00039442,7]
[314124847,1708008647127,-768.02,0.00039446,2]
[314124848,1708008647136,-356.58296802,0.00039449,2]
[314124849,1708008647145,-150.0,0.00039451,2]
[314124850,1708008647154,-150.0,0.00039451,2]
[314124852,1708008647163,-557.50893271,0.00039452,7]
[314124854,1708008647172,-504.70386238,0.00039452,7]
[314124856,1708008647182,-322.53489218,0.00039452,7]
[314124858,1708008647195,-500.0,0.00039452,7]
[314124860,1708008647204,-500.0,0.00039452,7]
[314124862,1708008647213,-509.02657177,0.00039452,7]
[314124864,1708008647222,-187.33496323,0.00039452,7]
[314124865,1708008647231,-505.04790904,0.00039452,15]
[314124866,1708008647240,-501.81099762,0.00039452,7]
[314124867,1708008647249,-509.92911311,0.00039452,7]
[314124868,1708008647258,-500.0,0.00039452,7]
[314124869,1708008647267,-500.0,0.00039452,7]
[314124870,1708008647276,-500.0,0.00039452,7]
[314124871,1708008647286,-404.23196787,0.00039452,7]
[314124872,1708008647379,-546.66548949,0.00039452,7]
[314124873,1708008647389,-474.17657206,0.00039452,7]
[314124874,1708008647399,-244.4829717,0.00039452,7]
[314124875,1708008647408,-296.91424138,0.00039452,7]
[314124876,1708008647418,-524.86113636,0.00039452,7]
[314124877,1708008647427,-500.0,0.00039452,7]
[314124878,1708008647436,-500.0,0.00039452,7]
[314124879,1708008647446,-500.0,0.00039452,7]
[314124880,1708008647454,-549.84684217,0.00039452,7]
[314124881,1708008647463,-500.0,0.00039452,7]
[314124882,1708008647473,-508.99952911,0.00039452,7]
[314124883,1708008647482,-578.66465498,0.00039452,7]
[314124884,1708008647492,-500.0,0.00039452,7]
[314124885,1708008647501,-508.79351576,0.00039452,7]
[314124886,1708008647511,-500.0,0.00039452,7]
[314124887,1708008647520,-526.41607718,0.00039452,7]
[314124888,1708008647530,-500.0,0.00039452,7]
[314124889,1708008647539,-449.70395486,0.00039452,7]
[314124890,1708008647549,-310.30188606,0.00039452,7]
[314124891,1708008647558,-151.0,0.00039452,7]
[314124892,1708008647567,-519.24028704,0.00039452,7]
[314124893,1708008647576,-514.35349478,0.00039452,7]
[314124894,1708008647586,-500.0,0.00039452,7]
[314124895,1708008647595,-500.0,0.00039452,7]
[314124896,1708008647605,-502.63658136,0.00039452,7]
[314124897,1708008647615,-500.0,0.00039452,7]
[314124898,1708008647624,-500.0,0.00039452,7]
[314124899,1708008647633,-500.93866923,0.00039452,7]
[314124900,1708008647643,-500.0,0.00039452,7]
[314124901,1708008647652,-500.0,0.00039452,7]
[314124902,1708008647662,-507.88071825,0.00039452,7]
[314124903,1708008647672,-216.47896926,0.00039452,7]
[314124904,1708008647681,-500.0,0.00039452,7]
[314124905,1708008647691,-518.95348025,0.00039452,7]
[314124906,1708008647701,-250.0,0.00039452,7]
[314124907,1708008647710,-515.80534666,0.00039452,7]
[314124908,1708008647719,-506.14005328,0.00039452,7]
[314124909,1708008647728,-321.69648625,0.00039452,7]
[314124910,1708008647737,-508.23824411,0.00039452,7]
[314124911,1708008647746,-500.2639986,0.00039452,7]
[314124912,1708008647755,-500.0,0.00039452,7]
[314124913,1708008647765,-500.0,0.00039452,7]
[314124914,1708008647773,-500.0,0.00039452,7]
[314124915,1708008647783,-518.98371549,0.00039452,7]
[314124916,1708008647792,-500.0,0.00039452,7]
[314124917,1708008647801,-502.89774857,0.00039452,7]
[314124918,1708008647810,-502.1469545,0.00039452,7]
[314124919,1708008647820,-151.0,0.00039452,7]
[314124920,1708008647828,-500.0,0.00039452,7]
[314124921,1708008647837,-388.92047623,0.00039452,7]
[314124922,1708008647846,-151.0,0.00039452,7]
[314124923,1708008647855,-500.0,0.00039452,7]
[314124924,1708008647864,-509.28967933,0.00039452,7]
[314124925,1708008647874,-510.79275836,0.00039452,7]
[314124926,1708008647884,-509.21958738,0.00039452,7]
[314124927,1708008647893,-500.0,0.00039452,7]
[314124928,1708008647902,-500.0,0.00039452,7]
[314124929,1708008647911,-509.52539758,0.00039452,7]
[314124930,1708008647921,-500.0,0.00039452,7]
[314124931,1708008647930,-500.0,0.00039452,7]
[314124932,1708008647940,-518.51315706,0.00039452,7]
[314124933,1708008647949,-509.82188529,0.00039452,7]
[314124934,1708008647959,-500.0,0.00039452,7]
[314124935,1708008647968,-500.0,0.00039452,7]
[314124936,1708008647978,-400.30973961,0.00039452,7]
[314124937,1708008647987,-531.41171715,0.00039452,7]
[314124938,1708008647996,-527.27684306,0.00039452,7]
[314124939,1708008648006,-500.0,0.00039452,7]
[314124940,1708008648015,-500.0,0.00039452,7]
[314124941,1708008648024,-500.0,0.00039452,7]
[314124942,1708008648033,-270.45073933,0.00039452,7]
[314124943,1708008648042,-197.36579644,0.00039452,7]
[314124944,1708008648052,-504.64361516,0.00039452,7]
[314124945,1708008648062,-534.20158857,0.00039452,7]
[314124946,1708008648071,-500.0,0.00039452,7]
[314124947,1708008648082,-500.0,0.00039452,7]
[314124948,1708008648092,-178.2,0.00039452,7]
[314124949,1708008648101,-178.2,0.00039452,7]
[314124950,1708008648110,-500.0,0.00039452,7]
[314124951,1708008648119,-500.0,0.00039452,7]
[314124952,1708008648131,-550.33874667,0.00039452,7]
[314124953,1708008648171,-500.0,0.00039452,7]
[314124954,1708008648181,-500.0,0.00039452,7]
[314124955,1708008648192,-498.001,0.00039452,7]
[314124956,1708008648204,-577.38135072,0.00039452,7]
[314124957,1708008648213,-500.0,0.00039452,7]
[314124958,1708008648222,-500.0,0.00039452,7]
[314124959,1708008648231,-500.0,0.00039452,7]
[314124960,1708008648240,-513.92416439,0.00039452,7]
[314124961,1708008648249,-506.24009431,0.00039452,7]
[314124962,1708008648259,-500.0,0.00039452,7]
[314124963,1708008648268,-373.273337,0.00039452,2]
[314124964,1708008648277,-500.0,0.00039452,7]
[314124965,1708008648289,-373.273337,0.00039452,2]
[314124966,1708008648298,-500.0,0.00039452,7]
[314124967,1708008648307,-500.0,0.00039452,7]
[314124968,1708008648317,-544.6820342,0.00039452,7]
[314124969,1708008648326,-500.0,0.00039452,7]
[314124970,1708008648335,-530.03824509,0.00039452,7]
[314124971,1708008648344,-500.0,0.00039452,7]
[314124972,1708008648354,-500.0,0.00039452,7]
[314124973,1708008648363,-500.0,0.00039452,7]
[314124974,1708008648373,-500.0,0.00039452,7]
[314124975,1708008648382,-500.0,0.00039452,7]
[314124976,1708008648391,-500.0,0.00039452,7]
[314124977,1708008648401,-500.0,0.00039452,7]
[314124978,1708008648410,-500.0,0.00039452,7]
[314124979,1708008648419,-500.0,0.00039452,7]
[314124980,1708008648429,-500.0,0.00039452,7]
[314124981,1708008648440,-512.91372318,0.00039452,7]
[314124982,1708008648450,-500.0,0.00039452,7]
[314124983,1708008648461,-500.0,0.00039452,7]
[314124984,1708008648471,-500.0,0.00039452,7]
[314124985,1708008648480,-500.0,0.00039452,7]
[314124986,1708008648490,-500.0,0.00039452,7]
[314124987,1708008648499,-500.0,0.00039452,7]
[314124988,1708008648509,-500.0,0.00039452,7]
[314124989,1708008648518,-500.0,0.00039452,7]
[314124990,1708008648527,-500.0,0.00039452,7]
[314124991,1708008648537,-529.36944675,0.00039452,7]
[314124992,1708008648546,-513.0187975,0.00039452,7]
[314124993,1708008648555,-199.14585535,0.00039452,7]
[314124994,1708008648564,-500.0,0.00039452,7]
[314124995,1708008648648,-500.0,0.00039452,7]
[314124996,1708008648658,-500.0,0.00039452,7]
[314124997,1708008648667,-500.0,0.00039452,7]
[314124998,1708008648676,-500.0,0.00039452,7]
[314124999,1708008648687,-151.0,0.00039452,7]
[314125000,1708008648698,-399.95895225,0.00039452,7]
[314125001,1708008648706,-500.0,0.00039452,7]
[314125002,1708008648715,-500.0,0.00039452,7]
[314125003,1708008648724,-500.01529521,0.00039452,7]
[314125004,1708008648733,-151.0,0.00039452,7]
[314125005,1708008648742,-500.0,0.00039452,7]
[314125006,1708008648751,-500.0,0.00039452,7]
[314125007,1708008648760,-548.58365102,0.00039452,7]
[314125008,1708008648769,-500.0,0.00039452,7]
[314125009,1708008648778,-527.5922004,0.00039452,7]
[314125010,1708008648787,-500.0,0.00039452,7]
[314125011,1708008648796,-500.0,0.00039452,7]
[314125012,1708008648805,-500.0,0.00039452,7]
[314125013,1708008648814,-500.0,0.00039452,7]
[314125014,1708008648823,-520.48319741,0.00039452,7]
[314125015,1708008648833,-500.0,0.00039452,7]
[314125016,1708008648842,-500.0,0.00039452,7]
[314125017,1708008648851,-1000.0,0.00039452,7]
[314125018,1708008648861,-1408.56,0.00039452,7]
[314125019,1708008648870,-500.0,0.00039452,7]
[314125020,1708008648880,-500.0,0.00039452,7]
[314125021,1708008648890,-321.83993843,0.00039452,7]
[314125022,1708008648899,-500.0,0.00039452,7]
[314125023,1708008648908,-500.0,0.00039452,7]
[314125024,1708008648917,-595.26857741,0.00039452,7]
[314125025,1708008648926,-522.50593265,0.00039452,7]
[314125026,1708008648935,-515.61636779,0.00039452,7]
[314125027,1708008648949,-500.0,0.00039452,7]
[314125028,1708008648959,-500.0,0.00039452,7]
[314125029,1708008648968,-500.0,0.00039452,7]
[314125030,1708008648977,-500.0,0.00039452,7]
[314125031,1708008648986,-500.0,0.00039452,7]
[314125032,1708008648996,-500.0,0.00039452,2]
[314125033,1708008649005,-500.0,0.00039452,7]
[314125034,1708008649014,-500.0,0.00039452,7]
[314125035,1708008649024,-500.0,0.00039452,7]
[314125036,1708008649033,-500.0,0.00039452,7]
[314125037,1708008649042,-512.47102481,0.00039452,7]
[314125038,1708008649051,-500.0,0.00039452,7]
[314125039,1708008649061,-500.0,0.00039452,7]
[314125040,1708008649071,-500.0,0.00039452,7]
[314125041,1708008649080,-500.0,0.00039452,7]
[314125042,1708008649090,-344.93964638,0.00039452,7]
[314125043,1708008649099,-500.0,0.00039452,7]
[314125044,1708008649108,-513.45781184,0.00039452,7]
[314125045,1708008649118,-500.0,0.00039452,7]
[314125046,1708008649127,-500.0,0.00039452,7]
[314125047,1708008649136,-500.0,0.00039452,7]
[314125048,1708008649146,-500.0,0.00039452,7]
[314125049,1708008649156,-539.70040536,0.00039452,7]
[314125050,1708008649165,-507.89167163,0.00039452,7]
[314125051,1708008649175,-500.0,0.00039452,7]
[314125052,1708008649201,-513.78643283,0.00039452,7]
[314125053,1708008649217,-500.0,0.00039452,7]
[314125054,1708008649237,-505.18459794,0.00039452,7]
[314125055,1708008649258,-585.94770258,0.00039452,7]
[314125056,1708008649275,-500.0,0.00039452,7]
[314125057,1708008649294,-1000.0,0.00039452,7]
[314125058,1708008649311,-500.0,0.00039452,7]
[314125059,1708008649329,-500.0,0.00039452,7]
[314125060,1708008649348,-500.0,0.00039452,7]
[314125061,1708008649366,-500.0,0.00039452,7]
[314125062,1708008649387,-500.0,0.00039452,7]
[314125063,1708008649409,-500.0,0.00039452,7]
[314125064,1708008649422,-500.0,0.00039452,7]
[314125065,1708008649439,-500.0,0.00039452,7]
[314125066,1708008649455,-500.0,0.00039452,7]
[314125067,1708008649469,-500.0,0.00039452,7]
[314125068,1708008649484,-500.0,0.00039452,7]
[314125069,1708008649499,-500.0,0.00039452,7]
[314125070,1708008649513,-500.0,0.00039452,7]
[314125071,1708008649528,-500.0,0.00039452,7]
[314125072,1708008649543,-500.0,0.00039452,7]
[314125073,1708008649558,-500.0,0.00039452,7]
[314125074,1708008649573,-500.0,0.00039452,7]
[314125075,1708008649588,-500.0,0.00039452,7]
[314125076,1708008649604,-500.0,0.00039452,7]
[314125077,1708008649619,-500.0,0.00039452,7]
[314125078,1708008649634,-500.0,0.00039452,7]
[314125079,1708008649648,-500.0,0.00039452,7]
[314125080,1708008649663,-500.0,0.00039452,7]
[314125081,1708008649678,-500.0,0.00039452,7]
[314125082,1708008649694,-500.0,0.00039452,7]
[314125083,1708008649709,-500.0,0.00039452,7]
[314125084,1708008649723,-509.96565593,0.00039452,7]
[314125085,1708008649737,-178.95068036,0.00039452,7]
[314125086,1708008649752,-500.0,0.00039452,7]
[314125087,1708008649766,-500.0,0.00039452,7]
[314125088,1708008649781,-500.0,0.00039452,7]
[314125089,1708008649796,-500.0,0.00039452,7]
[314125090,1708008649811,-500.0,0.00039452,7]
[314125091,1708008649825,-500.0,0.00039452,7]
[314125092,1708008649840,-249.90903493,0.00039452,7]
[314125093,1708008649854,-500.0,0.00039452,7]
[314125094,1708008649870,-761.77,0.00039452,7]
[314125095,1708008649885,-505.36604608,0.00039452,7]
[314125096,1708008649900,-360.74106704,0.00039452,7]
[314125097,1708008649914,-500.0,0.00039452,7]
[314125098,1708008649928,-500.0,0.00039452,7]
[314125099,1708008649944,-500.0,0.00039452,7]
[314125100,1708008649959,-500.0,0.00039452,7]
[314125101,1708008649974,-404.44335281,0.00039452,7]